[Event "Late-Titled-Tuesday-Blitz-February-20-2024"]
[Site "Chess.com"]
[Date "2024.02.20"]
[Round "1"]
[White "MajorCoast"]
[Black "ozates"]
[Result "0-1"]
[WhiteElo "2218"]
[BlackElo "2572"]
[TimeControl "180+1"]
[EndTime "14:06:28 PST"]
[Termination "ozates won by checkmate"]

1. g3 {[%clk 0:02:57.9]} 1... c5 {[%clk 0:02:55.7]} 2. Bg2 {[%clk 0:02:58.8]}
2... Nc6 {[%clk 0:02:56.3]} 3. e4 {[%clk 0:02:58.2]} 3... g6 {[%clk 0:02:55.9]}
4. d3 {[%clk 0:02:57.5]} 4... Bg7 {[%clk 0:02:56.5]} 5. Nc3 {[%clk 0:02:52.5]}
5... d6 {[%clk 0:02:56.7]} 6. Be3 {[%clk 0:02:52.4]} 6... e5 {[%clk 0:02:55.9]}
7. Qd2 {[%clk 0:02:52.2]} 7... Be6 {[%clk 0:02:56.5]} 8. Nge2 {[%clk 0:02:51.2]}
8... Qd7 {[%clk 0:02:55.7]} 9. Nd5 {[%clk 0:02:47.2]} 9... Nd4 {[%clk
0:02:54.2]} 10. c3 {[%clk 0:02:37.4]} 10... Nxe2 {[%clk 0:02:53.4]} 11. Qxe2
{[%clk 0:02:38.3]} 11... Bxd5 {[%clk 0:02:54]} 12. exd5 {[%clk 0:02:39.2]} 12...
Ne7 {[%clk 0:02:54.4]} 13. c4 {[%clk 0:02:38.1]} 13... O-O {[%clk 0:02:54.9]}
14. h4 {[%clk 0:02:36.5]} 14... Nf5 {[%clk 0:02:52.5]} 15. Bh3 {[%clk
0:02:28.7]} 15... h5 {[%clk 0:02:42.8]} 16. Qf3 {[%clk 0:02:16.2]} 16... Rab8
{[%clk 0:02:33.2]} 17. a4 {[%clk 0:02:13]} 17... a6 {[%clk 0:02:20.3]} 18. Bxf5
{[%clk 0:02:00.1]} 18... Qxf5 {[%clk 0:02:19]} 19. Qxf5 {[%clk 0:02:00.1]} 19...
gxf5 {[%clk 0:02:19.9]} 20. Ke2 {[%clk 0:01:53.1]} 20... b5 {[%clk 0:02:20]} 21.
axb5 {[%clk 0:01:52.1]} 21... axb5 {[%clk 0:02:20.9]} 22. Rhb1 {[%clk
0:01:28.5]} 22... bxc4 {[%clk 0:02:20.5]} 23. dxc4 {[%clk 0:01:29.4]} 23... Rb4
{[%clk 0:02:14.8]} 24. b3 {[%clk 0:01:25.5]} 24... Rfb8 {[%clk 0:02:13.4]} 25.
Ra6 {[%clk 0:01:24.1]} 25... Bf8 {[%clk 0:02:12.6]} 26. Ra3 {[%clk 0:00:51.4]}
26... Rxc4 {[%clk 0:02:12.4]} 27. bxc4 {[%clk 0:00:52.3]} 27... Rxb1 {[%clk
0:02:11.2]} 28. Bg5 {[%clk 0:00:46.6]} 28... Rb4 {[%clk 0:02:05.9]} 29. Kd3
{[%clk 0:00:45.9]} 29... e4+ {[%clk 0:02:05.2]} 30. Ke3 {[%clk 0:00:36.9]} 30...
Rxc4 {[%clk 0:02:05.1]} 31. Kf4 {[%clk 0:00:36.5]} 31... Rd4 {[%clk 0:01:54.6]}
32. Kxf5 {[%clk 0:00:31.8]} 32... Rxd5+ {[%clk 0:01:54.8]} 33. Kxe4 {[%clk
0:00:32.2]} 33... Re5+ {[%clk 0:01:55.4]} 34. Kd3 {[%clk 0:00:29.5]} 34... d5
{[%clk 0:01:51.7]} 35. Ra8 {[%clk 0:00:24.4]} 35... Kg7 {[%clk 0:01:48.6]} 36.
Ra6 {[%clk 0:00:21.3]} 36... Re6 {[%clk 0:01:44.4]} 37. Ra8 {[%clk 0:00:18]}
37... Re4 {[%clk 0:01:40.7]} 38. Ra6 {[%clk 0:00:17.6]} 38... c4+ {[%clk
0:01:40.2]} 39. Kc3 {[%clk 0:00:15.8]} 39... Bc5 {[%clk 0:01:39.6]} 40. Bf6+
{[%clk 0:00:06.9]} 40... Kh7 {[%clk 0:01:38.7]} 41. Ra8 {[%clk 0:00:06.6]} 41...
Bxf2 {[%clk 0:01:28.7]} 42. Bg5 {[%clk 0:00:04.8]} 42... Be1+ {[%clk 0:01:26.7]}
43. Kc2 {[%clk 0:00:03.9]} 43... d4 {[%clk 0:01:27.4]} 44. Rd8 {[%clk
0:00:03.6]} 44... d3+ {[%clk 0:01:27.6]} 45. Kd1 {[%clk 0:00:03.5]} 45... Ba5
{[%clk 0:01:26.9]} 46. Rd7 {[%clk 0:00:03.7]} 46... Re1# {[%clk 0:01:26.7]} 0-1

[Event "Late-Titled-Tuesday-Blitz-February-20-2024"]
[Site "Chess.com"]
[Date "2024.02.20"]
[Round "1"]
[White "mishanick"]
[Black "Maestro1986"]
[Result "1-0"]
[WhiteElo "3008"]
[BlackElo "2500"]
[TimeControl "180+1"]
[EndTime "14:06:29 PST"]
[Termination "mishanick won by resignation"]

1. c4 {[%clk 0:03:00.9]} 1... g6 {[%clk 0:02:58.5]} 2. d4 {[%clk 0:03:00.8]}
2... Bg7 {[%clk 0:02:59.4]} 3. e4 {[%clk 0:03:01.2]} 3... d6 {[%clk 0:02:58.3]}
4. Nc3 {[%clk 0:02:58.8]} 4... c5 {[%clk 0:02:57.1]} 5. d5 {[%clk 0:02:52.9]}
5... Nf6 {[%clk 0:02:55.8]} 6. Bd3 {[%clk 0:02:52.2]} 6... O-O {[%clk
0:02:56.2]} 7. Nf3 {[%clk 0:02:52.5]} 7... e6 {[%clk 0:02:56.2]} 8. h3 {[%clk
0:02:52.9]} 8... exd5 {[%clk 0:02:56.4]} 9. cxd5 {[%clk 0:02:53.8]} 9... a6
{[%clk 0:02:54.7]} 10. a4 {[%clk 0:02:53.8]} 10... Nbd7 {[%clk 0:02:54.5]} 11.
O-O {[%clk 0:02:52.6]} 11... Qc7 {[%clk 0:02:53.9]} 12. Bf4 {[%clk 0:02:52.4]}
12... c4 {[%clk 0:02:53.4]} 13. Bc2 {[%clk 0:02:49.9]} 13... Rb8 {[%clk
0:02:53]} 14. Re1 {[%clk 0:02:48]} 14... b5 {[%clk 0:02:53.1]} 15. axb5 {[%clk
0:02:47.2]} 15... axb5 {[%clk 0:02:54]} 16. e5 {[%clk 0:02:47.1]} 16... Nh5
{[%clk 0:02:23.9]} 17. exd6 {[%clk 0:02:45.2]} 17... Qc5 {[%clk 0:02:22.6]} 18.
Ne4 {[%clk 0:02:33.8]} 18... Qb4 {[%clk 0:02:17.3]} 19. Be3 {[%clk 0:02:27.3]}
19... Qxb2 {[%clk 0:02:12.1]} 20. Rb1 {[%clk 0:02:24.2]} 20... Qa3 {[%clk
0:02:08]} 21. Nd4 {[%clk 0:02:24.8]} 21... b4 {[%clk 0:01:56.7]} 22. Nc6 {[%clk
0:02:25.2]} 22... b3 {[%clk 0:01:56.5]} 23. Nxb8 {[%clk 0:02:24.8]} 23... Nxb8
{[%clk 0:01:56.1]} 24. Bxb3 {[%clk 0:02:24.8]} 24... cxb3 {[%clk 0:01:53.8]} 25.
Rxb3 {[%clk 0:02:25.7]} 25... Qa8 {[%clk 0:01:52.1]} 26. Bd4 {[%clk 0:02:13.1]}
26... Nd7 {[%clk 0:01:35.1]} 27. Bxg7 {[%clk 0:02:13.5]} 27... Nxg7 {[%clk
0:01:34.7]} 28. Rc3 {[%clk 0:02:00.5]} 28... Ne8 {[%clk 0:01:27.2]} 29. Qd4
{[%clk 0:01:40.8]} 29... Qb8 {[%clk 0:01:01.1]} 30. Rc6 {[%clk 0:01:34.4]} 30...
Bb7 {[%clk 0:00:58.7]} 31. Rb1 {[%clk 0:01:17.1]} 31... f5 {[%clk 0:00:52.8]}
32. Nc5 {[%clk 0:01:14.4]} 32... Nxc5 {[%clk 0:00:43.1]} 33. Qxc5 {[%clk
0:01:15.3]} 33... Qa8 {[%clk 0:00:36.7]} 34. d7 {[%clk 0:01:14.9]} 34... Nf6
{[%clk 0:00:35.9]} 35. Rxb7 {[%clk 0:01:01.6]} 35... Qxb7 {[%clk 0:00:13.1]} 36.
Qxf8+ {[%clk 0:01:00.9]} 36... Kxf8 {[%clk 0:00:10.6]} 1-0

[Event "Late-Titled-Tuesday-Blitz-February-20-2024"]
[Site "Chess.com"]
[Date "2024.02.20"]
[Round "1"]
[White "thesupera12"]
[Black "Hrant_ChessMood"]
[Result "0-1"]
[WhiteElo "2500"]
[BlackElo "3004"]
[TimeControl "180+1"]
[EndTime "14:06:30 PST"]
[Termination "Hrant_ChessMood won by resignation"]

1. d4 {[%clk 0:02:56.3]} 1... Nf6 {[%clk 0:02:59.1]} 2. Bg5 {[%clk 0:02:55.2]}
2... d5 {[%clk 0:02:58.6]} 3. Bxf6 {[%clk 0:02:53.8]} 3... gxf6 {[%clk
0:02:57.4]} 4. e3 {[%clk 0:02:54.7]} 4... e6 {[%clk 0:02:54.6]} 5. c4 {[%clk
0:02:54.4]} 5... a6 {[%clk 0:02:31.5]} 6. Nc3 {[%clk 0:02:53.6]} 6... dxc4
{[%clk 0:02:30.2]} 7. Bxc4 {[%clk 0:02:54.5]} 7... b5 {[%clk 0:02:27.6]} 8. Bd3
{[%clk 0:02:54.1]} 8... Bb7 {[%clk 0:02:26.9]} 9. Be4 {[%clk 0:02:52.6]} 9...
Bxe4 {[%clk 0:02:23.2]} 10. Nxe4 {[%clk 0:02:53.5]} 10... f5 {[%clk 0:02:23.5]}
11. Nc3 {[%clk 0:02:52.5]} 11... Bg7 {[%clk 0:02:17.1]} 12. Nf3 {[%clk
0:02:51.8]} 12... O-O {[%clk 0:02:17.1]} 13. O-O {[%clk 0:02:52.4]} 13... c5
{[%clk 0:02:15.2]} 14. dxc5 {[%clk 0:02:48.3]} 14... Nc6 {[%clk 0:02:06]} 15.
Qxd8 {[%clk 0:02:45.2]} 15... Rfxd8 {[%clk 0:02:05.6]} 16. Rac1 {[%clk
0:02:46.1]} 16... Nb4 {[%clk 0:02:01.7]} 17. a3 {[%clk 0:02:37.8]} 17... Nd3
{[%clk 0:01:59.2]} 18. Rc2 {[%clk 0:02:38.1]} 18... Nxb2 {[%clk 0:01:49]} 19.
Rxb2 {[%clk 0:01:52.1]} 19... Bxc3 {[%clk 0:01:47.9]} 20. Rc2 {[%clk 0:01:53]}
20... Bf6 {[%clk 0:01:47.9]} 21. Rfc1 {[%clk 0:01:40]} 21... Rac8 {[%clk
0:01:47.5]} 22. c6 {[%clk 0:01:39.8]} 22... Rc7 {[%clk 0:01:47.7]} 23. h3 {[%clk
0:00:48.1]} 23... h5 {[%clk 0:01:33.3]} 24. g4 {[%clk 0:00:40.3]} 24... fxg4
{[%clk 0:01:31.9]} 25. hxg4 {[%clk 0:00:41.2]} 25... hxg4 {[%clk 0:01:32.8]} 26.
Nh2 {[%clk 0:00:41.7]} 26... g3 {[%clk 0:01:32.2]} 27. fxg3 {[%clk 0:00:40.8]}
27... a5 {[%clk 0:01:31.2]} 28. Ng4 {[%clk 0:00:40.2]} 28... Bg7 {[%clk
0:01:30.9]} 29. Rc5 {[%clk 0:00:40.1]} 29... b4 {[%clk 0:01:30.1]} 30. axb4
{[%clk 0:00:41]} 30... axb4 {[%clk 0:01:30.2]} 31. Rb5 {[%clk 0:00:41.4]} 31...
Bc3 {[%clk 0:01:28.5]} 32. Rg5+ {[%clk 0:00:35.6]} 32... Kf8 {[%clk 0:01:28.2]}
33. Kg2 {[%clk 0:00:34.8]} 33... Rxc6 {[%clk 0:01:27.5]} 34. Ne5 {[%clk
0:00:30]} 34... Rc7 {[%clk 0:01:18.7]} 35. Rb1 {[%clk 0:00:25]} 35... Rd5 {[%clk
0:01:16.4]} 36. Nf3 {[%clk 0:00:21.4]} 36... Rd3 {[%clk 0:01:12]} 37. Kf2 {[%clk
0:00:16.4]} 37... Ra7 {[%clk 0:01:12.2]} 38. Ke2 {[%clk 0:00:16]} 38... Rd8
{[%clk 0:01:11.7]} 39. Rh5 {[%clk 0:00:09.9]} 39... Ra2+ {[%clk 0:01:11.8]} 40.
Kf1 {[%clk 0:00:10.7]} 40... Rd3 {[%clk 0:01:10]} 41. Rh8+ {[%clk 0:00:09.9]}
41... Bxh8 {[%clk 0:01:09]} 0-1

[Event "Late-Titled-Tuesday-Blitz-February-20-2024"]
[Site "Chess.com"]
[Date "2024.02.20"]
[Round "1"]
[White "babero_gordo"]
[Black "OPQRC"]
[Result "1-0"]
[WhiteElo "2162"]
[BlackElo "2532"]
[TimeControl "180+1"]
[EndTime "14:06:30 PST"]
[Termination "babero_gordo won by resignation"]

1. e4 {[%clk 0:03:00.3]} 1... d6 {[%clk 0:02:57.5]} 2. f4 {[%clk 0:02:56.6]}
2... g6 {[%clk 0:02:58.4]} 3. Nf3 {[%clk 0:02:55.5]} 3... Bg7 {[%clk 0:02:58.4]}
4. Nc3 {[%clk 0:02:55.1]} 4... e5 {[%clk 0:02:58.4]} 5. Bc4 {[%clk 0:02:51.3]}
5... Ne7 {[%clk 0:02:51.9]} 6. d3 {[%clk 0:02:49.2]} 6... O-O {[%clk 0:02:50.5]}
7. O-O {[%clk 0:02:48.2]} 7... Nbc6 {[%clk 0:02:45.1]} 8. a3 {[%clk 0:02:44.8]}
8... Be6 {[%clk 0:02:44.8]} 9. Bxe6 {[%clk 0:02:23.9]} 9... fxe6 {[%clk
0:02:45.7]} 10. Ng5 {[%clk 0:02:23.3]} 10... Nd4 {[%clk 0:02:15.4]} 11. Be3
{[%clk 0:02:17.7]} 11... Nec6 {[%clk 0:02:13]} 12. Qd2 {[%clk 0:02:10.5]} 12...
Qe7 {[%clk 0:01:46]} 13. Rae1 {[%clk 0:01:56.7]} 13... Rf6 {[%clk 0:00:54.3]}
14. fxe5 {[%clk 0:01:54.6]} 14... Rxf1+ {[%clk 0:00:54.4]} 15. Rxf1 {[%clk
0:01:53]} 15... Bxe5 {[%clk 0:00:53.7]} 16. Ne2 {[%clk 0:01:41.8]} 16... Rf8
{[%clk 0:00:49.6]} 17. Rxf8+ {[%clk 0:01:36.6]} 17... Qxf8 {[%clk 0:00:50.5]}
18. c3 {[%clk 0:01:33.5]} 18... Nxe2+ {[%clk 0:00:50.3]} 19. Qxe2 {[%clk
0:01:33.3]} 19... Qe7 {[%clk 0:00:43.2]} 20. d4 {[%clk 0:01:26.7]} 20... Bf6
{[%clk 0:00:42.7]} 21. Nh3 {[%clk 0:01:20.5]} 21... d5 {[%clk 0:00:39]} 22. e5
{[%clk 0:01:18.6]} 22... Bg7 {[%clk 0:00:37.9]} 23. Qg4 {[%clk 0:01:17.6]} 23...
Nd8 {[%clk 0:00:36.7]} 24. Bg5 {[%clk 0:01:15.9]} 24... Qd7 {[%clk 0:00:35.5]}
25. Bxd8 {[%clk 0:01:13.2]} 25... Qxd8 {[%clk 0:00:35.8]} 26. Qxe6+ {[%clk
0:01:13.3]} 26... Kh8 {[%clk 0:00:32.6]} 27. Qf7 {[%clk 0:01:10.9]} 27... c6
{[%clk 0:00:19.7]} 28. Ng5 {[%clk 0:01:01.8]} 28... Qf8 {[%clk 0:00:14.6]} 29.
e6 {[%clk 0:00:57]} 29... Qxf7 {[%clk 0:00:03.4]} 30. exf7 {[%clk 0:00:57.9]}
30... Bf8 {[%clk 0:00:02.2]} 31. Ne6 {[%clk 0:00:57.1]} 31... Bd6 {[%clk
0:00:02.5]} 32. f8=Q+ {[%clk 0:00:56.2]} 32... Bxf8 {[%clk 0:00:03.4]} 33. Nxf8
{[%clk 0:00:56.3]} 33... Kg7 {[%clk 0:00:04.3]} 34. Ne6+ {[%clk 0:00:56.3]}
34... Kf6 {[%clk 0:00:05.1]} 35. Nd8 {[%clk 0:00:56.4]} 35... Ke7 {[%clk
0:00:05.3]} 36. Nxb7 {[%clk 0:00:56.3]} 36... Kd7 {[%clk 0:00:05.6]} 37. Nc5+
{[%clk 0:00:56.4]} 1-0

[Event "Late-Titled-Tuesday-Blitz-February-20-2024"]
[Site "Chess.com"]
[Date "2024.02.20"]
[Round "1"]
[White "rhungaski"]
[Black "MAGMAchess02"]
[Result "1-0"]
[WhiteElo "2592"]
[BlackElo "2238"]
[TimeControl "180+1"]
[EndTime "14:06:31 PST"]
[Termination "rhungaski won on time"]

1. e4 {[%clk 0:03:00.9]} 1... c5 {[%clk 0:02:59.3]} 2. Nf3 {[%clk 0:03:00.8]}
2... Nc6 {[%clk 0:02:59.4]} 3. d4 {[%clk 0:03:01.4]} 3... cxd4 {[%clk
0:02:54.9]} 4. Nxd4 {[%clk 0:03:02.3]} 4... e5 {[%clk 0:02:54.1]} 5. Nf5 {[%clk
0:03:01.5]} 5... d5 {[%clk 0:02:50.4]} 6. Qxd5 {[%clk 0:03:00.8]} 6... Qxd5
{[%clk 0:02:49.4]} 7. exd5 {[%clk 0:03:01.7]} 7... Bxf5 {[%clk 0:02:48]} 8. dxc6
{[%clk 0:03:02.6]} 8... bxc6 {[%clk 0:02:48.2]} 9. Bd3 {[%clk 0:03:02.5]} 9...
Bxd3 {[%clk 0:02:43.4]} 10. cxd3 {[%clk 0:03:03.4]} 10... O-O-O {[%clk
0:02:39.3]} 11. Ke2 {[%clk 0:03:03]} 11... f5 {[%clk 0:02:23.4]} 12. Nd2 {[%clk
0:03:01.9]} 12... Bc5 {[%clk 0:02:18]} 13. Nc4 {[%clk 0:03:00.2]} 13... Nf6
{[%clk 0:02:01.5]} 14. Be3 {[%clk 0:02:54.3]} 14... Bd4 {[%clk 0:01:47.7]} 15.
Rac1 {[%clk 0:02:47.1]} 15... Kc7 {[%clk 0:01:24.8]} 16. b4 {[%clk 0:02:39.9]}
16... Rhe8 {[%clk 0:01:18.7]} 17. Na5 {[%clk 0:02:39.4]} 17... Re6 {[%clk
0:01:16.5]} 18. b5 {[%clk 0:02:34.4]} 18... c5 {[%clk 0:01:13.3]} 19. Nc6 {[%clk
0:02:14.8]} 19... Rd5 {[%clk 0:01:05.5]} 20. a4 {[%clk 0:01:54.2]} 20... Kb6
{[%clk 0:00:57.5]} 21. Rb1 {[%clk 0:01:41.2]} 21... e4 {[%clk 0:00:19.7]} 22.
a5+ {[%clk 0:01:35.1]} 22... Kc7 {[%clk 0:00:19.6]} 23. Nxd4 {[%clk 0:01:26.7]}
23... cxd4 {[%clk 0:00:19]} 24. Bf4+ {[%clk 0:01:24]} 24... Kd7 {[%clk
0:00:09.2]} 25. b6 {[%clk 0:01:20.1]} 25... axb6 {[%clk 0:00:08.3]} 26. axb6
{[%clk 0:01:21]} 26... exd3+ {[%clk 0:00:08.3]} 27. Kxd3 {[%clk 0:01:20.2]}
27... Rc6 {[%clk 0:00:05.8]} 28. f3 {[%clk 0:01:08.9]} 28... Rc3+ {[%clk
0:00:05.6]} 29. Kd2 {[%clk 0:01:09.4]} 29... Rdc5 {[%clk 0:00:05.3]} 30. b7
{[%clk 0:00:58.5]} 30... Rc2+ {[%clk 0:00:04.1]} 31. Ke1 {[%clk 0:00:54.9]}
31... d3 {[%clk 0:00:02.5]} 32. b8=Q {[%clk 0:00:52.6]} 32... Re2+ {[%clk
0:00:02.1]} 33. Kf1 {[%clk 0:00:52.6]} 1-0

[Event "Late-Titled-Tuesday-Blitz-February-20-2024"]
[Site "Chess.com"]
[Date "2024.02.20"]
[Round "1"]
[White "Polish_fighter3000"]
[Black "zajka-molotok"]
[Result "1-0"]
[WhiteElo "3066"]
[BlackElo "2508"]
[TimeControl "180+1"]
[EndTime "14:06:34 PST"]
[Termination "Polish_fighter3000 won by resignation"]

1. e4 {[%clk 0:03:00.9]} 1... e6 {[%clk 0:02:56.4]} 2. d3 {[%clk 0:02:57.2]}
2... d5 {[%clk 0:02:57]} 3. Nd2 {[%clk 0:02:57.8]} 3... Nf6 {[%clk 0:02:56.6]}
4. g3 {[%clk 0:02:57.2]} 4... a5 {[%clk 0:02:53.3]} 5. Bg2 {[%clk 0:02:56.9]}
5... a4 {[%clk 0:02:53.6]} 6. a3 {[%clk 0:02:54.3]} 6... Nc6 {[%clk 0:02:52.9]}
7. Ngf3 {[%clk 0:02:53.3]} 7... h6 {[%clk 0:02:49]} 8. O-O {[%clk 0:02:52.6]}
8... Be7 {[%clk 0:02:48.7]} 9. Re1 {[%clk 0:02:48.8]} 9... O-O {[%clk
0:02:48.4]} 10. d4 {[%clk 0:02:18.2]} 10... b6 {[%clk 0:02:20.8]} 11. c3 {[%clk
0:01:53.3]} 11... Bb7 {[%clk 0:02:11.5]} 12. e5 {[%clk 0:01:48.7]} 12... Nh7
{[%clk 0:02:09.9]} 13. h4 {[%clk 0:01:46.7]} 13... b5 {[%clk 0:02:06.5]} 14. Bf1
{[%clk 0:01:38.4]} 14... Ba6 {[%clk 0:02:02.9]} 15. Bd3 {[%clk 0:01:38.5]} 15...
Re8 {[%clk 0:01:55.1]} 16. Bc2 {[%clk 0:01:34]} 16... Na5 {[%clk 0:01:46.2]} 17.
Nh2 {[%clk 0:01:34.1]} 17... c5 {[%clk 0:01:42]} 18. Ndf3 {[%clk 0:01:30.5]}
18... Nc4 {[%clk 0:01:21.3]} 19. Rb1 {[%clk 0:01:27]} 19... Bb7 {[%clk
0:01:06.2]} 20. Qd3 {[%clk 0:01:22.3]} 20... Nf8 {[%clk 0:01:04.4]} 21. dxc5
{[%clk 0:01:14.8]} 21... Bxc5 {[%clk 0:01:02.6]} 22. Ng4 {[%clk 0:01:12.5]}
22... h5 {[%clk 0:00:59.9]} 23. Ngh2 {[%clk 0:01:04.6]} 23... Qb6 {[%clk
0:00:57.5]} 24. Qe2 {[%clk 0:01:02.6]} 24... g6 {[%clk 0:00:39.6]} 25. g4 {[%clk
0:00:59.1]} 25... hxg4 {[%clk 0:00:37.3]} 26. Nxg4 {[%clk 0:01:00]} 26... Be7
{[%clk 0:00:21.7]} 27. Bg5 {[%clk 0:00:53.7]} 27... Nh7 {[%clk 0:00:16.9]} 28.
Bxe7 {[%clk 0:00:53]} 28... Rxe7 {[%clk 0:00:17.8]} 29. Nd4 {[%clk 0:00:51.8]}
29... Qd8 {[%clk 0:00:11.1]} 30. Qf3 {[%clk 0:00:48.2]} 30... Rd7 {[%clk
0:00:08.5]} 31. Qf4 {[%clk 0:00:48]} 31... Kg7 {[%clk 0:00:06.8]} 32. Qh6+
{[%clk 0:00:46.4]} 32... Kh8 {[%clk 0:00:06.4]} 33. Nf6 {[%clk 0:00:46]} 1-0

[Event "Late-Titled-Tuesday-Blitz-February-20-2024"]
[Site "Chess.com"]
[Date "2024.02.20"]
[Round "1"]
[White "Atousa"]
[Black "IlyaGrigorjev"]
[Result "0-1"]
[WhiteElo "2461"]
[BlackElo "2898"]
[TimeControl "180+1"]
[EndTime "14:06:36 PST"]
[Termination "IlyaGrigorjev won by resignation"]

1. e4 {[%clk 0:02:55.6]} 1... e5 {[%clk 0:03:00]} 2. Nf3 {[%clk 0:02:55]} 2...
Nc6 {[%clk 0:03:00.7]} 3. Bb5 {[%clk 0:02:54.4]} 3... a6 {[%clk 0:03:00.9]} 4.
Ba4 {[%clk 0:02:54]} 4... Nge7 {[%clk 0:02:59.3]} 5. O-O {[%clk 0:02:50.1]} 5...
Ng6 {[%clk 0:02:59.5]} 6. c3 {[%clk 0:02:47.6]} 6... d5 {[%clk 0:02:59.5]} 7.
exd5 {[%clk 0:02:44.8]} 7... Qxd5 {[%clk 0:03:00.4]} 8. Re1 {[%clk 0:02:36.6]}
8... Bg4 {[%clk 0:02:53]} 9. h3 {[%clk 0:02:21.4]} 9... Bxf3 {[%clk 0:02:51.1]}
10. Qxf3 {[%clk 0:02:22.3]} 10... Qxf3 {[%clk 0:02:50.8]} 11. gxf3 {[%clk
0:02:22.9]} 11... O-O-O {[%clk 0:02:51.7]} 12. Bxc6 {[%clk 0:01:58]} 12... bxc6
{[%clk 0:02:51.8]} 13. d4 {[%clk 0:01:58.4]} 13... exd4 {[%clk 0:02:50.5]} 14.
cxd4 {[%clk 0:01:59.3]} 14... Rxd4 {[%clk 0:02:45.2]} 15. Nc3 {[%clk 0:01:59.3]}
15... Bb4 {[%clk 0:02:41.1]} 16. Be3 {[%clk 0:01:58.5]} 16... Rd3 {[%clk
0:02:41.5]} 17. Rec1 {[%clk 0:01:56.1]} 17... Bxc3 {[%clk 0:02:40.4]} 18. Rxc3
{[%clk 0:01:54.7]} 18... Rxc3 {[%clk 0:02:40.4]} 19. bxc3 {[%clk 0:01:55.6]}
19... Rd8 {[%clk 0:02:39.4]} 20. Kf1 {[%clk 0:01:52.2]} 20... Nh4 {[%clk
0:02:19.1]} 21. Ke2 {[%clk 0:01:51.2]} 21... Nf5 {[%clk 0:02:19.4]} 22. Rg1
{[%clk 0:01:45.7]} 22... g6 {[%clk 0:02:19.5]} 23. Rb1 {[%clk 0:01:43.3]} 23...
Rd5 {[%clk 0:02:18.8]} 24. Ba7 {[%clk 0:01:36]} 24... Rb5 {[%clk 0:02:19]} 25.
Rd1 {[%clk 0:01:34.2]} 25... Rb2+ {[%clk 0:02:18]} 26. Rd2 {[%clk 0:01:30.9]}
26... Rxd2+ {[%clk 0:02:17.3]} 27. Kxd2 {[%clk 0:01:31.8]} 27... Kd7 {[%clk
0:02:16.5]} 28. Kd3 {[%clk 0:01:29]} 28... Nh4 {[%clk 0:02:16]} 29. Ke4 {[%clk
0:01:25.6]} 29... Ke6 {[%clk 0:02:15.9]} 30. Bd4 {[%clk 0:01:21.8]} 30... Nf5
{[%clk 0:02:03.3]} 31. Bc5 {[%clk 0:01:19.6]} 31... Nd6+ {[%clk 0:02:03.3]} 32.
Kf4 {[%clk 0:01:11.8]} 32... f6 {[%clk 0:02:03.7]} 33. Bd4 {[%clk 0:01:00.9]}
33... h5 {[%clk 0:01:42.6]} 34. Ke3 {[%clk 0:00:55.8]} 34... Nf5+ {[%clk
0:01:42.2]} 35. Ke4 {[%clk 0:00:55.2]} 35... Nxd4 {[%clk 0:01:35.1]} 36. Kxd4
{[%clk 0:00:56.1]} 36... g5 {[%clk 0:01:10.5]} 37. Kc5 {[%clk 0:00:51.8]} 37...
f5 {[%clk 0:01:04.4]} 38. Kxc6 {[%clk 0:00:45.3]} 38... h4 {[%clk 0:01:04.2]}
39. Kxc7 {[%clk 0:00:17.7]} 39... g4 {[%clk 0:01:04.4]} 40. fxg4 {[%clk
0:00:10.1]} 40... fxg4 {[%clk 0:01:05]} 41. c4 {[%clk 0:00:11]} 41... gxh3
{[%clk 0:01:04.2]} 42. c5 {[%clk 0:00:11.9]} 42... h2 {[%clk 0:01:05.1]} 43. c6
{[%clk 0:00:12.5]} 43... h1=Q {[%clk 0:01:06]} 44. Kb7 {[%clk 0:00:13.1]} 44...
h3 {[%clk 0:01:05.4]} 45. Kb6 {[%clk 0:00:13]} 45... Kd6 {[%clk 0:01:05.4]} 46.
c7 {[%clk 0:00:13.3]} 46... Qc6+ {[%clk 0:01:06.1]} 0-1

[Event "Late-Titled-Tuesday-Blitz-February-20-2024"]
[Site "Chess.com"]
[Date "2024.02.20"]
[Round "1"]
[White "Njal28"]
[Black "Capablanca_Oujda_2021"]
[Result "1-0"]
[WhiteElo "3003"]
[BlackElo "2499"]
[TimeControl "180+1"]
[EndTime "14:06:37 PST"]
[Termination "Njal28 won on time"]

1. d4 {[%clk 0:02:59.1]} 1... Nf6 {[%clk 0:02:59.8]} 2. Nf3 {[%clk 0:02:59.5]}
2... e6 {[%clk 0:02:59.8]} 3. c4 {[%clk 0:02:59.4]} 3... d5 {[%clk 0:03:00]} 4.
Nc3 {[%clk 0:02:58.5]} 4... c5 {[%clk 0:03:00]} 5. cxd5 {[%clk 0:02:55.8]} 5...
cxd4 {[%clk 0:02:59.5]} 6. Qxd4 {[%clk 0:02:56.2]} 6... exd5 {[%clk 0:02:59]} 7.
e4 {[%clk 0:02:56.8]} 7... dxe4 {[%clk 0:02:59.2]} 8. Qxd8+ {[%clk 0:02:56.8]}
8... Kxd8 {[%clk 0:03:00.1]} 9. Ng5 {[%clk 0:02:57.6]} 9... Be6 {[%clk
0:02:59.9]} 10. a3 {[%clk 0:02:46.1]} 10... Nc6 {[%clk 0:02:40.5]} 11. Bf4
{[%clk 0:02:35.6]} 11... Bb3 {[%clk 0:02:38.3]} 12. Ncxe4 {[%clk 0:02:28.8]}
12... Be7 {[%clk 0:02:27.7]} 13. Nd2 {[%clk 0:02:25.6]} 13... Bd5 {[%clk
0:02:27.2]} 14. Bc4 {[%clk 0:02:25.7]} 14... Ke8 {[%clk 0:02:14.5]} 15. O-O
{[%clk 0:02:25.4]} 15... h6 {[%clk 0:02:14.2]} 16. Ngf3 {[%clk 0:02:25.5]} 16...
Kf8 {[%clk 0:01:48.1]} 17. Rfe1 {[%clk 0:02:22.8]} 17... g5 {[%clk 0:01:39.2]}
18. Bg3 {[%clk 0:02:16.9]} 18... Bxc4 {[%clk 0:01:34.2]} 19. Nxc4 {[%clk
0:02:17.1]} 19... Nh5 {[%clk 0:01:34.1]} 20. Bd6 {[%clk 0:02:14.7]} 20... Bxd6
{[%clk 0:01:29.8]} 21. Nxd6 {[%clk 0:02:15.6]} 21... Nf4 {[%clk 0:01:26.3]} 22.
Rad1 {[%clk 0:02:05.1]} 22... b6 {[%clk 0:01:17.9]} 23. Nf5 {[%clk 0:01:55.4]}
23... Rd8 {[%clk 0:01:11.4]} 24. Rxd8+ {[%clk 0:01:55.5]} 24... Nxd8 {[%clk
0:01:12.3]} 25. Re7 {[%clk 0:01:56]} 25... a5 {[%clk 0:00:58.7]} 26. Ra7 {[%clk
0:01:54.3]} 26... Kg8 {[%clk 0:00:52.2]} 27. h4 {[%clk 0:01:46.2]} 27... g4
{[%clk 0:00:47.8]} 28. Ne5 {[%clk 0:01:43.4]} 28... Kh7 {[%clk 0:00:31.5]} 29.
g3 {[%clk 0:01:36.8]} 29... Nd5 {[%clk 0:00:28.1]} 30. h5 {[%clk 0:01:29.2]}
30... Rf8 {[%clk 0:00:22.5]} 31. Nxg4 {[%clk 0:01:21.9]} 31... Ne6 {[%clk
0:00:16.7]} 32. Rd7 {[%clk 0:01:20.1]} 32... Ndc7 {[%clk 0:00:08.9]} 33. Nf6+
{[%clk 0:01:19.3]} 33... Kh8 {[%clk 0:00:08.8]} 34. Nxh6 {[%clk 0:01:17.6]}
34... Kg7 {[%clk 0:00:08.6]} 35. Nfg4 {[%clk 0:01:09.4]} 35... Ne8 {[%clk
0:00:04.6]} 36. Nf5+ {[%clk 0:01:09.7]} 36... Kh8 {[%clk 0:00:03.6]} 37. h6
{[%clk 0:01:02.3]} 37... Rg8 {[%clk 0:00:03.4]} 38. Ne5 {[%clk 0:01:02.1]} 1-0